[Event "December 12 Early 2023"]
[Site "https://www.chess.com"]
[Date "2023.12.12"]
[Round "4"]
[White "Kosteniuk, Alexandra"]
[Black "Matveeva, Olga"]
[Result "1/2-1/2"]
[Board "30"]
[TimeControl "180+1"]
[WhiteFideId "4128125"]
[BlackFideId "24107018"]
[WhiteElo "2729"]
[BlackElo "2417"]
[WhiteTeam "SUI"]
[BlackTeam "RUS"]
[WhiteClock "0:00:14"]
[BlackClock "0:00:06"]

1. e4 {[%clk 0:03:00]}  c6 {[%clk 0:02:59]} 2. Nf3 {[%clk 0:03:00]}  d5 {[%clk 0:02:59]} 3. Nc3 {[%clk 0:03:00]}  dxe4 {[%clk 0:02:58]} 4. Nxe4 {[%clk 0:03:01]}  Nf6 {[%clk 0:02:58]} 5. Qe2 {[%clk 0:03:01]}  Nxe4 {[%clk 0:02:57]} 6. Qxe4 {[%clk 0:03:02]}  Nd7 {[%clk 0:02:55]} 7. d4 {[%clk 0:03:02]}  Nf6 {[%clk 0:02:55]} 8. Qd3 {[%clk 0:03:01]}  Bg4 {[%clk 0:02:50]} 9. Be2 {[%clk 0:02:56]}  e6 {[%clk 0:02:49]} 10. Bd2 {[%clk 0:02:42]}  Be7 {[%clk 0:02:48]} 11. h3 {[%clk 0:02:37]}  Bf5 {[%clk 0:02:44]} 12. Qb3 {[%clk 0:02:37]}  Qb6 {[%clk 0:02:43]} 13. O-O-O {[%clk 0:02:31]}  Qxb3 {[%clk 0:02:39]} 14. axb3 {[%clk 0:02:26]}  h5 {[%clk 0:02:36]} 15. Ne5 {[%clk 0:02:25]}  h4 {[%clk 0:02:28]} 16. Nc4 {[%clk 0:02:07]}  O-O-O {[%clk 0:02:19]} 17. Ba5 {[%clk 0:01:57]}  Rd5 {[%clk 0:02:13]} 18. Bc3 {[%clk 0:01:54]}  Ne4 {[%clk 0:02:12]} 19. Rhf1 {[%clk 0:01:48]}  Nxc3 {[%clk 0:02:11]} 20. bxc3 {[%clk 0:01:48]}  Be4 {[%clk 0:01:54]} 21. f3 {[%clk 0:01:46]}  Bh7 {[%clk 0:01:46]} 22. Ne3 {[%clk 0:01:46]}  Rd7 {[%clk 0:01:41]} 23. Kb2 {[%clk 0:01:44]}  Rhd8 {[%clk 0:01:39]} 24. Ra1 {[%clk 0:01:44]}  a6 {[%clk 0:01:37]} 25. Ra5 {[%clk 0:01:43]}  Bg6 {[%clk 0:01:29]} 26. Rfa1 {[%clk 0:01:41]}  Kc7 {[%clk 0:01:19]} 27. Nc4 {[%clk 0:01:35]}  Bf6 {[%clk 0:01:15]} 28. Re1 {[%clk 0:01:14]}  Rd5 {[%clk 0:01:12]} 29. Raa1 {[%clk 0:01:10]}  c5 {[%clk 0:01:07]} 30. Ne3 {[%clk 0:01:07]}  Rxd4 {[%clk 0:01:00]} 31. cxd4 {[%clk 0:01:03]}  Bxd4+ {[%clk 0:01:01]} 32. c3 {[%clk 0:01:00]}  Bxe3 {[%clk 0:01:01]} 33. Rad1 {[%clk 0:00:56]}  Rxd1 {[%clk 0:00:50]} 34. Bxd1 {[%clk 0:00:49]}  Bf4 {[%clk 0:00:48]} 35. Bc2 {[%clk 0:00:48]}  Bxc2 {[%clk 0:00:43]} 36. Kxc2 {[%clk 0:00:49]}  Kc6 {[%clk 0:00:37]} 37. Rd1 {[%clk 0:00:48]}  Bd6 {[%clk 0:00:37]} 38. Kd3 {[%clk 0:00:48]}  f5 {[%clk 0:00:34]} 39. Kc2 {[%clk 0:00:43]}  g5 {[%clk 0:00:34]} 40. c4 {[%clk 0:00:42]}  Bc7 {[%clk 0:00:33]} 41. Re1 {[%clk 0:00:42]}  Kd7 {[%clk 0:00:32]} 42. Rd1+ {[%clk 0:00:41]}  Kc6 {[%clk 0:00:32]} 43. Kd3 {[%clk 0:00:41]}  Bd6 {[%clk 0:00:31]} 44. Ke2 {[%clk 0:00:40]}  Bc7 {[%clk 0:00:31]} 45. Rd3 {[%clk 0:00:40]}  Bd6 {[%clk 0:00:30]} 46. Re3 {[%clk 0:00:40]}  Kd7 {[%clk 0:00:31]} 47. Kd3 {[%clk 0:00:40]}  Bf4 {[%clk 0:00:28]} 48. Re2 {[%clk 0:00:41]}  Bg3 {[%clk 0:00:28]} 49. Ra2 {[%clk 0:00:39]}  Bf4 {[%clk 0:00:27]} 50. Ra1 {[%clk 0:00:38]}  Be5 {[%clk 0:00:27]} 51. Re1 {[%clk 0:00:38]}  Bf4 {[%clk 0:00:25]} 52. Rd1 {[%clk 0:00:38]}  Kc6 {[%clk 0:00:24]} 53. Kc2 {[%clk 0:00:31]}  Bd6 {[%clk 0:00:24]} 54. Kd3 {[%clk 0:00:27]}  Bf4 {[%clk 0:00:22]} 55. Ke2 {[%clk 0:00:27]}  Bd6 {[%clk 0:00:21]} 56. Rd3 {[%clk 0:00:27]}  Kc7 {[%clk 0:00:21]} 57. Rd1 {[%clk 0:00:24]}  Kc6 {[%clk 0:00:21]} 58. Rc1 {[%clk 0:00:23]}  Kc7 {[%clk 0:00:21]} 59. Rc3 {[%clk 0:00:22]}  Kc6 {[%clk 0:00:21]} 60. Re3 {[%clk 0:00:22]}  Kd7 {[%clk 0:00:21]} 61. Rd3 {[%clk 0:00:23]}  Kc6 {[%clk 0:00:21]} 62. Kd2 {[%clk 0:00:23]}  Kc7 {[%clk 0:00:20]} 63. Kc3 {[%clk 0:00:23]}  Kc6 {[%clk 0:00:20]} 64. Re3 {[%clk 0:00:23]}  Kd7 {[%clk 0:00:20]} 65. Re1 {[%clk 0:00:21]}  Bf4 {[%clk 0:00:18]} 66. b4 {[%clk 0:00:21]}  cxb4+ {[%clk 0:00:17]} 67. Kb3 {[%clk 0:00:20]}  a5 {[%clk 0:00:16]} 68. Ka4 {[%clk 0:00:19]}  b6 {[%clk 0:00:16]} 69. Re2 {[%clk 0:00:18]}  Kd6 {[%clk 0:00:15]} 70. Kb5 {[%clk 0:00:17]}  b3 {[%clk 0:00:14]} 71. Rb2 {[%clk 0:00:17]}  Be3 {[%clk 0:00:12]} 72. Rxb3 {[%clk 0:00:17]}  Bc5 {[%clk 0:00:12]} 73. Rb2 {[%clk 0:00:17]}  Ke5 {[%clk 0:00:12]} 74. Re2+ {[%clk 0:00:17]}  Kf6 {[%clk 0:00:12]} 75. Kc6 {[%clk 0:00:17]}  a4 {[%clk 0:00:10]} 76. Kd7 {[%clk 0:00:17]}  a3 {[%clk 0:00:08]} 77. Rxe6+ {[%clk 0:00:17]}  Kf7 {[%clk 0:00:09]} 78. Re2 {[%clk 0:00:17]}  Kf6 {[%clk 0:00:09]} 79. Kc6 {[%clk 0:00:17]}  Kf7 {[%clk 0:00:06]} 80. Kd5 {[%clk 0:00:16]}  Kf6 {[%clk 0:00:06]} 81. Re6+ {[%clk 0:00:16]}  Kf7 {[%clk 0:00:06]} 82. Re2 {[%clk 0:00:17]}  Kf6 {[%clk 0:00:07]} 83. Ra2 {[%clk 0:00:17]}  f4 {[%clk 0:00:05]} 84. Ke4 {[%clk 0:00:17]}  Ke6 {[%clk 0:00:05]} 85. Rd2 {[%clk 0:00:16]}  Bb4 {[%clk 0:00:05]} 86. Rd8 {[%clk 0:00:17]}  Bc5 {[%clk 0:00:04]} 87. Ra8 {[%clk 0:00:17]}  Bb4 {[%clk 0:00:03]} 88. Ra7 {[%clk 0:00:17]}  Bc5 {[%clk 0:00:03]} 89. Ra4 {[%clk 0:00:17]}  Kd6 {[%clk 0:00:03]} 90. Kd3 {[%clk 0:00:17]}  Ke5 {[%clk 0:00:03]} 91. Ra8 {[%clk 0:00:16]}  Kf5 {[%clk 0:00:03]} 92. Ra6 {[%clk 0:00:15]}  Ke5 {[%clk 0:00:03]} 93. Ra8 {[%clk 0:00:15]}  Kf5 {[%clk 0:00:04]} 94. Ra4 {[%clk 0:00:15]}  Ke5 {[%clk 0:00:04]} 95. Ra6 {[%clk 0:00:15]}  Kf5 {[%clk 0:00:05]} 96. Kc2 {[%clk 0:00:15]}  Ke5 {[%clk 0:00:05]} 97. Kd3 {[%clk 0:00:13]}  Kf5 {[%clk 0:00:06]} 98. Ra7 {[%clk 0:00:14]}  Ke5 {[%clk 0:00:06]} 99. Ra8 {[%clk 0:00:14]} 1/2-1/2

[Event "December 12 Early 2023"]
[Site "https://www.chess.com"]
[Date "2023.12.12"]
[Round "4"]
[White "Santos, Rafael Ventura Dos"]
[Black "Kourkoulos-Arditis, Stamatis"]
[Result "1/2-1/2"]
[Board "31"]
[TimeControl "180+1"]
[WhiteFideId "2122227"]
[BlackFideId "4221990"]
[WhiteElo "2292"]
[BlackElo "2715"]
[WhiteTeam "BRA"]
[BlackTeam "GRE"]
[WhiteClock "0:00:40"]
[BlackClock "0:00:04"]

1. e4 {[%clk 0:03:00]}  c5 {[%clk 0:02:58]} 2. c4 {[%clk 0:03:00]}  Nc6 {[%clk 0:02:56]} 3. Ne2 {[%clk 0:03:00]}  g6 {[%clk 0:02:41]} 4. d4 {[%clk 0:02:59]}  cxd4 {[%clk 0:02:42]} 5. Nxd4 {[%clk 0:03:00]}  Bg7 {[%clk 0:02:43]} 6. Be3 {[%clk 0:03:00]}  Nf6 {[%clk 0:02:39]} 7. Nc3 {[%clk 0:03:00]}  O-O {[%clk 0:02:38]} 8. f3 {[%clk 0:03:01]}  d6 {[%clk 0:02:38]} 9. Qd2 {[%clk 0:03:01]}  Bd7 {[%clk 0:02:30]} 10. Rc1 {[%clk 0:03:00]}  Qa5 {[%clk 0:02:22]} 11. b3 {[%clk 0:02:57]}  Rfc8 {[%clk 0:02:21]} 12. g3 {[%clk 0:02:56]}  a6 {[%clk 0:02:21]} 13. Nxc6 {[%clk 0:02:55]}  Bxc6 {[%clk 0:02:20]} 14. Nd5 {[%clk 0:02:55]}  Qxd2+ {[%clk 0:02:15]} 15. Kxd2 {[%clk 0:02:56]}  Bxd5 {[%clk 0:02:11]} 16. cxd5 {[%clk 0:02:56]}  Nd7 {[%clk 0:02:08]} 17. Bh3 {[%clk 0:02:54]}  f5 {[%clk 0:01:48]} 18. exf5 {[%clk 0:02:49]}  Ne5 {[%clk 0:00:58]} 19. Rxc8+ {[%clk 0:02:42]}  Rxc8 {[%clk 0:00:58]} 20. f6 {[%clk 0:02:43]}  Nxf3+ {[%clk 0:00:46]} 21. Ke2 {[%clk 0:02:42]}  Rc2+ {[%clk 0:00:46]} 22. Kxf3 {[%clk 0:02:42]}  Bxf6 {[%clk 0:00:47]} 23. Be6+ {[%clk 0:02:42]}  Kg7 {[%clk 0:00:47]} 24. Rc1 {[%clk 0:02:42]}  Rxa2 {[%clk 0:00:44]} 25. Rc8 {[%clk 0:02:41]}  h5 {[%clk 0:00:37]} 26. h4 {[%clk 0:02:31]}  Rb2 {[%clk 0:00:34]} 27. Bf4 {[%clk 0:01:15]}  Rxb3+ {[%clk 0:00:32]} 28. Ke2 {[%clk 0:01:15]}  a5 {[%clk 0:00:26]} 29. Ra8 {[%clk 0:01:10]}  b6 {[%clk 0:00:21]} 30. Ra6 {[%clk 0:01:08]}  Rb4 {[%clk 0:00:15]} 31. Be3 {[%clk 0:01:06]}  a4 {[%clk 0:00:14]} 32. Rxb6 {[%clk 0:01:05]}  Rb3 {[%clk 0:00:14]} 33. Rxb3 {[%clk 0:01:02]}  axb3 {[%clk 0:00:15]} 34. Kd2 {[%clk 0:01:02]}  Be5 {[%clk 0:00:11]} 35. Bf4 {[%clk 0:00:55]}  Bb2 {[%clk 0:00:06]} 36. Bd7 {[%clk 0:00:51]}  Kf6 {[%clk 0:00:05]} 37. Ba4 {[%clk 0:00:50]}  Be5 {[%clk 0:00:03]} 38. Ke3 {[%clk 0:00:45]}  b2 {[%clk 0:00:02]} 39. Bc2 {[%clk 0:00:45]}  Bc3 {[%clk 0:00:02]} 40. Kd3 {[%clk 0:00:43]}  Be5 {[%clk 0:00:03]} 41. Ke4 {[%clk 0:00:42]}  Bc3 {[%clk 0:00:03]} 42. Bg5+ {[%clk 0:00:43]}  Kf7 {[%clk 0:00:03]} 43. Kd3 {[%clk 0:00:42]}  Be5 {[%clk 0:00:03]} 44. Bf4 {[%clk 0:00:42]}  Kf6 {[%clk 0:00:03]} 45. Ke4 {[%clk 0:00:41]}  Bc3 {[%clk 0:00:04]} 46. Bb1 {[%clk 0:00:40]}  Kf7 {[%clk 0:00:03]} 47. Bg5 {[%clk 0:00:40]}  Bg7 {[%clk 0:00:03]} 48. Kf3 {[%clk 0:00:41]}  Bc3 {[%clk 0:00:03]} 49. Be3 {[%clk 0:00:40]}  Be5 {[%clk 0:00:03]} 50. Bd2 {[%clk 0:00:40]}  Kf6 {[%clk 0:00:03]} 51. g4 {[%clk 0:00:40]}  hxg4+ {[%clk 0:00:03]} 52. Kxg4 {[%clk 0:00:41]}  Bd4 {[%clk 0:00:03]} 53. Bf4 {[%clk 0:00:41]}  Kf7 {[%clk 0:00:03]} 54. Bg5 {[%clk 0:00:40]}  Bc3 {[%clk 0:00:03]} 55. Kf3 {[%clk 0:00:41]}  Bd4 {[%clk 0:00:03]} 56. Ke2 {[%clk 0:00:41]}  Bg7 {[%clk 0:00:03]} 57. Kd3 {[%clk 0:00:41]}  e6 {[%clk 0:00:03]} 58. Ke4 {[%clk 0:00:40]}  exd5+ {[%clk 0:00:02]} 59. Kxd5 {[%clk 0:00:41]}  Be5 {[%clk 0:00:03]} 60. Kc4 {[%clk 0:00:40]}  Kg7 {[%clk 0:00:03]} 61. Kb3 {[%clk 0:00:40]}  Kf7 {[%clk 0:00:03]} 62. Ka2 {[%clk 0:00:40]}  Kg7 {[%clk 0:00:04]} 63. Be4 {[%clk 0:00:40]}  Kf7 {[%clk 0:00:04]} 64. Kb1 {[%clk 0:00:41]}  Kg7 {[%clk 0:00:04]} 65. Bd5 {[%clk 0:00:41]}  Bf6 {[%clk 0:00:03]} 66. Bxf6+ {[%clk 0:00:39]}  Kxf6 {[%clk 0:00:04]} 67. Kxb2 {[%clk 0:00:39]}  g5 {[%clk 0:00:04]} 68. hxg5+ {[%clk 0:00:39]}  Kxg5 {[%clk 0:00:04]} 69. Bb3 {[%clk 0:00:39]}  d5 {[%clk 0:00:04]} 70. Bxd5 {[%clk 0:00:40]} 1/2-1/2

[Event "December 12 Early 2023"]
[Site "https://www.chess.com"]
[Date "2023.12.12"]
[Round "4"]
[White "Duda, Jan-Krzysztof"]
[Black "NikaVolkov"]
[Result "1-0"]
[Board "34"]
[TimeControl "180+1"]
[WhiteFideId "1170546"]
[WhiteElo "3048"]
[BlackElo "2608"]
[WhiteTeam "POL"]
[WhiteClock "0:01:59"]
[BlackClock "0:00:05"]

1. g3 {[%clk 0:03:00]}  d5 {[%clk 0:03:00]} 2. Bg2 {[%clk 0:03:01]}  e6 {[%clk 0:03:00]} 3. f4 {[%clk 0:02:57]}  b5 {[%clk 0:03:00]} 4. Nf3 {[%clk 0:02:57]}  Bb7 {[%clk 0:03:01]} 5. O-O {[%clk 0:02:58]}  Nf6 {[%clk 0:03:01]} 6. a4 {[%clk 0:02:57]}  c6 {[%clk 0:03:01]} 7. b3 {[%clk 0:02:56]}  Be7 {[%clk 0:03:00]} 8. Bb2 {[%clk 0:02:56]}  Nbd7 {[%clk 0:03:00]} 9. Kh1 {[%clk 0:02:56]}  O-O {[%clk 0:03:01]} 10. e3 {[%clk 0:02:55]}  a5 {[%clk 0:03:02]} 11. d3 {[%clk 0:02:55]}  Nb6 {[%clk 0:03:02]} 12. Nbd2 {[%clk 0:02:50]}  bxa4 {[%clk 0:03:00]} 13. bxa4 {[%clk 0:02:51]}  c5 {[%clk 0:03:01]} 14. Ne5 {[%clk 0:02:50]}  Qc7 {[%clk 0:02:57]} 15. g4 {[%clk 0:02:48]}  Ne8 {[%clk 0:02:54]} 16. g5 {[%clk 0:02:46]}  Nd6 {[%clk 0:02:55]} 17. Qh5 {[%clk 0:02:44]}  Nf5 {[%clk 0:02:54]} 18. Ng4 {[%clk 0:02:31]}  c4 {[%clk 0:02:43]} 19. Be5 {[%clk 0:02:28]}  Bd6 {[%clk 0:02:40]} 20. Bf6 {[%clk 0:02:15]}  Nd7 {[%clk 0:01:00]} 21. e4 {[%clk 0:02:04]}  dxe4 {[%clk 0:00:59]} 22. dxe4 {[%clk 0:02:05]}  Bxf4 {[%clk 0:00:26]} 23. Rf2 {[%clk 0:02:03]}  g6 {[%clk 0:00:18]} 24. exf5 {[%clk 0:02:01]}  Bxg2+ {[%clk 0:00:14]} 25. Rxg2 {[%clk 0:01:59]}  Rfb8 {[%clk 0:00:05]} 26. Qh6 {[%clk 0:01:58]}  Nxf6 {[%clk 0:00:04]} 27. Nxf6+ {[%clk 0:01:59]}  Kh8 {[%clk 0:00:05]} 28. Qxh7# {[%clk 0:01:59]} 1-0

[Event "December 12 Early 2023"]
[Site "https://www.chess.com"]
[Date "2023.12.12"]
[Round "4"]
[White "Banzea, Alexandru-Bogdan"]
[Black "Khismatullin, Denis"]
[Result "0-1"]
[Board "35"]
[TimeControl "180+1"]
[WhiteFideId "1232622"]
[BlackFideId "4142578"]
[WhiteElo "2607"]
[BlackElo "2976"]
[WhiteTeam "ROU"]
[BlackTeam "RUS"]
[WhiteClock "0:00:04"]
[BlackClock "0:00:22"]

1. d4 {[%clk 0:03:00]}  Nf6 {[%clk 0:02:58]} 2. Nc3 {[%clk 0:03:01]}  d5 {[%clk 0:02:57]} 3. Bf4 {[%clk 0:03:02]}  e6 {[%clk 0:02:55]} 4. Nb5 {[%clk 0:03:00]}  Na6 {[%clk 0:02:52]} 5. e3 {[%clk 0:03:00]}  c6 {[%clk 0:02:51]} 6. Nc3 {[%clk 0:03:00]}  Nc7 {[%clk 0:02:51]} 7. Nf3 {[%clk 0:02:59]}  Be7 {[%clk 0:02:48]} 8. Ne5 {[%clk 0:02:58]}  c5 {[%clk 0:02:45]} 9. dxc5 {[%clk 0:02:56]}  Bxc5 {[%clk 0:02:42]} 10. Bd3 {[%clk 0:02:56]}  Bd6 {[%clk 0:02:40]} 11. Qf3 {[%clk 0:02:56]}  Qe7 {[%clk 0:02:32]} 12. O-O-O {[%clk 0:02:43]}  a6 {[%clk 0:02:26]} 13. e4 {[%clk 0:02:11]}  O-O {[%clk 0:02:24]} 14. Qh3 {[%clk 0:02:10]}  d4 {[%clk 0:02:09]} 15. Ne2 {[%clk 0:02:02]}  Nb5 {[%clk 0:02:05]} 16. g4 {[%clk 0:01:26]}  Qc7 {[%clk 0:02:00]} 17. Qg3 {[%clk 0:01:26]}  Qa5 {[%clk 0:01:43]} 18. Kb1 {[%clk 0:01:22]}  Qb4 {[%clk 0:01:33]} 19. Ka1 {[%clk 0:01:12]}  a5 {[%clk 0:01:01]} 20. Nc4 {[%clk 0:00:25]}  Bxf4 {[%clk 0:00:57]} 21. Qxf4 {[%clk 0:00:19]}  a4 {[%clk 0:00:52]} 22. a3 {[%clk 0:00:19]}  Qc5 {[%clk 0:00:52]} 23. g5 {[%clk 0:00:19]}  Nh5 {[%clk 0:00:47]} 24. Qg4 {[%clk 0:00:16]}  g6 {[%clk 0:00:47]} 25. e5 {[%clk 0:00:16]}  Nxa3 {[%clk 0:00:39]} 26. Nxa3 {[%clk 0:00:14]}  Rd8 {[%clk 0:00:35]} 27. Ng3 {[%clk 0:00:11]}  b5 {[%clk 0:00:28]} 28. Nxh5 {[%clk 0:00:11]}  b4 {[%clk 0:00:28]} 29. Nf6+ {[%clk 0:00:08]}  Kf8 {[%clk 0:00:27]} 30. Nc4 {[%clk 0:00:07]}  b3 {[%clk 0:00:27]} 31. Nxh7+ {[%clk 0:00:05]}  Ke7 {[%clk 0:00:26]} 32. Nf6 {[%clk 0:00:05]}  a3 {[%clk 0:00:26]} 33. cxb3 {[%clk 0:00:03]}  Qb4 {[%clk 0:00:24]} 34. Kb1 {[%clk 0:00:03]}  axb2 {[%clk 0:00:23]} 35. Qe2 {[%clk 0:00:04]}  Ra1+ {[%clk 0:00:22]} 36. Kxb2 {[%clk 0:00:04]}  Qc3# {[%clk 0:00:22]} 0-1

[Event "December 12 Early 2023"]
[Site "https://www.chess.com"]
[Date "2023.12.12"]
[Round "4"]
[White "Terry, Renato"]
[Black "Vlassov, Nikolai"]
[Result "1-0"]
[Board "36"]
[TimeControl "180+1"]
[WhiteFideId "3803457"]
[BlackFideId "4103360"]
[WhiteElo "2972"]
[BlackElo "2606"]
[WhiteTeam "PER"]
[BlackTeam "FID"]
[WhiteClock "0:00:05"]
[BlackClock "0:00:00"]

1. Nh3 {[%clk 0:03:00]}  e5 {[%clk 0:02:56]} 2. g3 {[%clk 0:03:00]}  h5 {[%clk 0:02:55]} 3. Bg2 {[%clk 0:02:58]}  h4 {[%clk 0:02:55]} 4. d3 {[%clk 0:02:58]}  d5 {[%clk 0:02:53]} 5. f4 {[%clk 0:02:58]}  Nc6 {[%clk 0:02:43]} 6. Nc3 {[%clk 0:02:57]}  Nf6 {[%clk 0:02:31]} 7. Nf2 {[%clk 0:02:51]}  hxg3 {[%clk 0:02:29]} 8. hxg3 {[%clk 0:02:52]}  Rxh1+ {[%clk 0:02:29]} 9. Bxh1 {[%clk 0:02:53]}  Be6 {[%clk 0:02:22]} 10. e4 {[%clk 0:02:46]}  dxe4 {[%clk 0:02:11]} 11. Ncxe4 {[%clk 0:02:45]}  Qd7 {[%clk 0:01:47]} 12. Nxf6+ {[%clk 0:02:40]}  gxf6 {[%clk 0:01:46]} 13. Be3 {[%clk 0:02:40]}  O-O-O {[%clk 0:01:45]} 14. Qd2 {[%clk 0:02:41]}  Bb4 {[%clk 0:01:41]} 15. c3 {[%clk 0:02:40]}  Ba5 {[%clk 0:01:38]} 16. b4 {[%clk 0:02:32]}  Bb6 {[%clk 0:01:38]} 17. Bxb6 {[%clk 0:02:33]}  axb6 {[%clk 0:01:37]} 18. O-O-O {[%clk 0:02:33]}  Bd5 {[%clk 0:01:31]} 19. Ne4 {[%clk 0:02:29]}  Bxe4 {[%clk 0:01:22]} 20. Bxe4 {[%clk 0:02:27]}  exf4 {[%clk 0:01:20]} 21. Qxf4 {[%clk 0:02:26]}  Qe7 {[%clk 0:01:03]} 22. Rf1 {[%clk 0:02:22]}  Rd6 {[%clk 0:00:59]} 23. d4 {[%clk 0:02:04]}  Kb8 {[%clk 0:00:56]} 24. Bc2 {[%clk 0:01:50]}  Re6 {[%clk 0:00:49]} 25. d5 {[%clk 0:01:46]}  Re1+ {[%clk 0:00:48]} 26. Kb2 {[%clk 0:01:41]}  Rxf1 {[%clk 0:00:45]} 27. Qxf1 {[%clk 0:01:41]}  Ne5 {[%clk 0:00:44]} 28. Bb3 {[%clk 0:01:32]}  Qd6 {[%clk 0:00:39]} 29. Qb5 {[%clk 0:01:22]}  Nd7 {[%clk 0:00:24]} 30. Ba4 {[%clk 0:01:22]}  Ne5 {[%clk 0:00:21]} 31. Bc2 {[%clk 0:01:23]}  Nd7 {[%clk 0:00:17]} 32. Bf5 {[%clk 0:01:22]}  c6 {[%clk 0:00:17]} 33. dxc6 {[%clk 0:01:14]}  bxc6 {[%clk 0:00:18]} 34. Qa6 {[%clk 0:01:07]}  Qd2+ {[%clk 0:00:13]} 35. Bc2 {[%clk 0:01:08]}  Kc7 {[%clk 0:00:12]} 36. Qa7+ {[%clk 0:01:07]}  Kd6 {[%clk 0:00:13]} 37. a4 {[%clk 0:00:58]}  Ne5 {[%clk 0:00:12]} 38. Qa6 {[%clk 0:00:53]}  Kd5 {[%clk 0:00:08]} 39. Kb3 {[%clk 0:00:45]}  Kd6 {[%clk 0:00:08]} 40. Qxb6 {[%clk 0:00:27]}  Qd5+ {[%clk 0:00:07]} 41. c4 {[%clk 0:00:28]}  Qxc4+ {[%clk 0:00:07]} 42. Kb2 {[%clk 0:00:28]}  Qd5 {[%clk 0:00:08]} 43. Qd8+ {[%clk 0:00:27]}  Nd7 {[%clk 0:00:06]} 44. Qa5 {[%clk 0:00:14]}  Qd4+ {[%clk 0:00:05]} 45. Ka2 {[%clk 0:00:15]}  Qc3 {[%clk 0:00:05]} 46. Kb1 {[%clk 0:00:14]}  Qe1+ {[%clk 0:00:05]} 47. Kb2 {[%clk 0:00:14]}  Ne5 {[%clk 0:00:05]} 48. Qd8+ {[%clk 0:00:10]}  Ke6 {[%clk 0:00:03]} 49. Qd4 {[%clk 0:00:08]}  Qe2 {[%clk 0:00:02]} 50. Kc3 {[%clk 0:00:07]}  Qe1+ {[%clk 0:00:01]} 51. Kb2 {[%clk 0:00:08]}  Qxg3 {[%clk 0:00:01]} 52. a5 {[%clk 0:00:08]}  Qg2 {[%clk 0:00:01]} 53. a6 {[%clk 0:00:08]}  Qe2 {[%clk 0:00:01]} 54. a7 {[%clk 0:00:05]}  Qa6 {[%clk 0:00:00]} 55. Qc5 {[%clk 0:00:05]} 1-0

[Event "December 12 Early 2023"]
[Site "https://www.chess.com"]
[Date "2023.12.12"]
[Round "4"]
[White "Ivic, Velimir"]
[Black "Tao, Sihan"]
[Result "1-0"]
[Board "37"]
[TimeControl "180+1"]
[WhiteFideId "950122"]
[BlackFideId "30982677"]
[WhiteElo "2955"]
[BlackElo "2604"]
[WhiteTeam "SRB"]
[BlackTeam "USA"]
[WhiteClock "0:01:01"]
[BlackClock "0:00:16"]

1. e4 {[%clk 0:02:54]}  c5 {[%clk 0:02:57]} 2. Nf3 {[%clk 0:02:54]}  d6 {[%clk 0:02:57]} 3. Nc3 {[%clk 0:02:51]}  Nc6 {[%clk 0:02:52]} 4. Bb5 {[%clk 0:02:48]}  Bd7 {[%clk 0:02:50]} 5. O-O {[%clk 0:02:48]}  Nf6 {[%clk 0:02:48]} 6. Re1 {[%clk 0:02:48]}  e6 {[%clk 0:02:41]} 7. d4 {[%clk 0:02:43]}  cxd4 {[%clk 0:02:40]} 8. Nxd4 {[%clk 0:02:44]}  Rc8 {[%clk 0:02:29]} 9. Nxc6 {[%clk 0:02:41]}  Bxc6 {[%clk 0:02:29]} 10. Bxc6+ {[%clk 0:02:40]}  Rxc6 {[%clk 0:02:29]} 11. Be3 {[%clk 0:02:41]}  a6 {[%clk 0:02:26]} 12. a4 {[%clk 0:02:20]}  Be7 {[%clk 0:02:26]} 13. a5 {[%clk 0:02:20]}  O-O {[%clk 0:02:24]} 14. Bd4 {[%clk 0:02:13]}  d5 {[%clk 0:01:53]} 15. e5 {[%clk 0:02:08]}  Nd7 {[%clk 0:01:47]} 16. Re3 {[%clk 0:02:01]}  Bc5 {[%clk 0:01:41]} 17. Ne2 {[%clk 0:01:58]}  Rc8 {[%clk 0:01:34]} 18. c3 {[%clk 0:01:56]}  Bxd4 {[%clk 0:01:28]} 19. Nxd4 {[%clk 0:01:56]}  Nb8 {[%clk 0:01:28]} 20. Ra4 {[%clk 0:01:41]}  Nc6 {[%clk 0:01:26]} 21. Nb3 {[%clk 0:01:41]}  d4 {[%clk 0:00:49]} 22. cxd4 {[%clk 0:01:36]}  Qd5 {[%clk 0:00:48]} 23. Rc3 {[%clk 0:01:34]}  Nxe5 {[%clk 0:00:38]} 24. h3 {[%clk 0:01:27]}  Rfd8 {[%clk 0:00:35]} 25. Qc2 {[%clk 0:01:15]}  Rxc3 {[%clk 0:00:33]} 26. bxc3 {[%clk 0:01:16]}  Nc6 {[%clk 0:00:33]} 27. Nc5 {[%clk 0:01:11]}  Ne7 {[%clk 0:00:29]} 28. Rb4 {[%clk 0:01:06]}  Nc6 {[%clk 0:00:19]} 29. Rxb7 {[%clk 0:01:07]}  Nxa5 {[%clk 0:00:19]} 30. Ra7 {[%clk 0:01:08]}  Rb8 {[%clk 0:00:17]} 31. Rxa6 {[%clk 0:01:06]}  Ra8 {[%clk 0:00:17]} 32. Qa4 {[%clk 0:01:01]}  Rxa6 {[%clk 0:00:16]} 33. Qe8# {[%clk 0:01:01]} 1-0